[Event "*** SCC Grand Prix: Titled Tuesday Blitz"]
[Site "Chess.com"]
[Date "2020.07.21"]
[Round "4"]
[White "Yoshikrov"]
[Black "MarceloPlaya"]
[Result "1-0"]
[WhiteElo "2125"]
[BlackElo "2298"]
[TimeControl "180+1"]
[EndTime "10:39:16 PDT"]
[Termination "Yoshikrov won on time"]

1. e4 {[%clk 0:03:00.9]} 1... e6 {[%clk 0:02:58.5]} 2. d4 {[%clk 0:03:00.8]}
2... d5 {[%clk 0:02:58.1]} 3. Nd2 {[%clk 0:03:01.1]} 3... c5 {[%clk 0:02:57.2]}
4. exd5 {[%clk 0:03:00.8]} 4... exd5 {[%clk 0:02:57.2]} 5. Ngf3 {[%clk
0:02:58.5]} 5... Nc6 {[%clk 0:02:57]} 6. Bb5 {[%clk 0:02:58.4]} 6... Bd6 {[%clk
0:02:56.6]} 7. dxc5 {[%clk 0:02:58.2]} 7... Bxc5 {[%clk 0:02:56]} 8. Nb3 {[%clk
0:02:58.9]} 8... Bb6 {[%clk 0:02:55.5]} 9. O-O {[%clk 0:02:59.5]} 9... Ne7
{[%clk 0:02:54.9]} 10. Nbd4 {[%clk 0:02:57.3]} 10... O-O {[%clk 0:02:53.5]} 11.
c3 {[%clk 0:02:57.7]} 11... Qd6 {[%clk 0:02:52.4]} 12. Re1 {[%clk 0:02:52.5]}
12... Bg4 {[%clk 0:02:50.6]} 13. Nxc6 {[%clk 0:02:45.2]} 13... bxc6 {[%clk
0:02:44.2]} 14. Be2 {[%clk 0:02:44.7]} 14... Nf5 {[%clk 0:02:26.8]} 15. h3
{[%clk 0:02:40.8]} 15... Bh5 {[%clk 0:02:26]} 16. g4 {[%clk 0:02:29.4]} 16...
Qg3+ {[%clk 0:02:23.1]} 17. Kh1 {[%clk 0:02:23.6]} 17... Qxh3+ {[%clk 0:02:17]}
18. Nh2 {[%clk 0:02:20.8]} 18... Nh4 {[%clk 0:02:09.9]} 19. Bf1 {[%clk
0:02:16.6]} 19... Bxg4 {[%clk 0:01:41]} 20. Bxh3 {[%clk 0:02:15.2]} 20... Bxd1
{[%clk 0:01:38.5]} 21. Rxd1 {[%clk 0:02:12]} 21... Bxf2 {[%clk 0:01:37.4]} 22.
Bg5 {[%clk 0:02:02.6]} 22... Ng6 {[%clk 0:01:32.8]} 23. Bd7 {[%clk 0:01:51.7]}
23... h6 {[%clk 0:01:22.4]} 24. Bd2 {[%clk 0:01:46.3]} 24... Ne5 {[%clk
0:01:21.2]} 25. Bh3 {[%clk 0:01:40.4]} 25... g5 {[%clk 0:01:13.8]} 26. Rf1
{[%clk 0:01:32.6]} 26... Bb6 {[%clk 0:01:09.9]} 27. Ng4 {[%clk 0:01:23.8]} 27...
Nxg4 {[%clk 0:01:07.4]} 28. Bxg4 {[%clk 0:01:24.7]} 28... Rfe8 {[%clk
0:01:02.7]} 29. Rf6 {[%clk 0:01:23.7]} 29... Re4 {[%clk 0:00:57.9]} 30. Bf3
{[%clk 0:01:17.8]} 30... Rh4+ {[%clk 0:00:52.3]} 31. Kg2 {[%clk 0:01:17.1]}
31... g4 {[%clk 0:00:34.8]} 32. Be2 {[%clk 0:01:11.1]} 32... Re8 {[%clk
0:00:30.3]} 33. Ba6 {[%clk 0:01:02.1]} 33... Re6 {[%clk 0:00:23.4]} 34. Rxe6
{[%clk 0:00:56.8]} 34... fxe6 {[%clk 0:00:22.7]} 35. Rh1 {[%clk 0:00:57.4]}
35... Rxh1 {[%clk 0:00:21.7]} 36. Kxh1 {[%clk 0:00:58.3]} 36... h5 {[%clk
0:00:20.2]} 37. Kg2 {[%clk 0:00:51.7]} 37... Kf7 {[%clk 0:00:19.4]} 38. a4
{[%clk 0:00:49.1]} 38... e5 {[%clk 0:00:18.2]} 39. b4 {[%clk 0:00:48.5]} 39...
e4 {[%clk 0:00:14.6]} 40. a5 {[%clk 0:00:48.8]} 40... Bc7 {[%clk 0:00:14.2]} 41.
Be3 {[%clk 0:00:49]} 41... Be5 {[%clk 0:00:13.2]} 42. Bb7 {[%clk 0:00:44.5]}
42... Bxc3 {[%clk 0:00:11.5]} 43. Bxc6 {[%clk 0:00:44.6]} 43... Ke6 {[%clk
0:00:06.9]} 44. a6 {[%clk 0:00:43]} 44... d4 {[%clk 0:00:04.6]} 45. Bc1 {[%clk
0:00:38.2]} 45... Ke5 {[%clk 0:00:03.8]} 46. b5 {[%clk 0:00:37]} 46... Ba5
{[%clk 0:00:03.5]} 47. Be8 {[%clk 0:00:36.3]} 47... h4 {[%clk 0:00:02.9]} 48.
Bh5 {[%clk 0:00:35.3]} 48... g3 {[%clk 0:00:02.5]} 49. Bg5 {[%clk 0:00:33.4]}
49... d3 {[%clk 0:00:02.3]} 50. Be3 {[%clk 0:00:32.3]} 50... Kd5 {[%clk
0:00:02.3]} 51. Kh3 {[%clk 0:00:31]} 51... d2 {[%clk 0:00:02.3]} 52. Kxh4 {[%clk
0:00:30.6]} 52... Kc4 {[%clk 0:00:01.4]} 53. Be2+ {[%clk 0:00:29.2]} 1-0

[Event "*** SCC Grand Prix: Titled Tuesday Blitz"]
[Site "Chess.com"]
[Date "2020.07.21"]
[Round "4"]
[White "Mikasinski"]
[Black "Richarzard69"]
[Result "1-0"]
[WhiteElo "2413"]
[BlackElo "2207"]
[TimeControl "180+1"]
[EndTime "10:39:17 PDT"]
[Termination "Mikasinski won on time"]

1. e4 {[%clk 0:03:00.9]} 1... e6 {[%clk 0:02:44.2]} 2. d4 {[%clk 0:02:58.9]}
2... c5 {[%clk 0:02:44.2]} 3. Nc3 {[%clk 0:02:59.5]} 3... cxd4 {[%clk
0:02:43.8]} 4. Qxd4 {[%clk 0:02:59.1]} 4... Nc6 {[%clk 0:02:44]} 5. Qe3 {[%clk
0:02:58.7]} 5... Bb4 {[%clk 0:02:42.7]} 6. Bd2 {[%clk 0:02:58.1]} 6... Nf6
{[%clk 0:02:40.6]} 7. a3 {[%clk 0:02:56.5]} 7... Ba5 {[%clk 0:02:38.9]} 8. O-O-O
{[%clk 0:02:50.5]} 8... O-O {[%clk 0:02:35.2]} 9. h3 {[%clk 0:02:42.2]} 9... d5
{[%clk 0:02:27.7]} 10. exd5 {[%clk 0:02:40.6]} 10... exd5 {[%clk 0:02:25.1]} 11.
Qg3 {[%clk 0:02:37.7]} 11... Bf5 {[%clk 0:02:16.1]} 12. Bd3 {[%clk 0:02:34]}
12... Bxd3 {[%clk 0:02:07.4]} 13. Qxd3 {[%clk 0:02:32.9]} 13... Ne5 {[%clk
0:02:01.2]} 14. Qg3 {[%clk 0:02:32.2]} 14... Nc4 {[%clk 0:01:32]} 15. Bg5 {[%clk
0:02:28.2]} 15... Qb6 {[%clk 0:01:14.9]} 16. b4 {[%clk 0:01:11.2]} 16... Bxb4
{[%clk 0:01:08.8]} 17. Na4 {[%clk 0:01:11.1]} 17... Qb5 {[%clk 0:00:41.3]} 18.
axb4 {[%clk 0:00:54.3]} 18... Ne4 {[%clk 0:00:34.6]} 19. Qb3 {[%clk 0:00:43.4]}
19... Nxg5 {[%clk 0:00:30.5]} 20. Nc3 {[%clk 0:00:40.7]} 20... Qa6 {[%clk
0:00:24.8]} 21. Rxd5 {[%clk 0:00:33.2]} 21... Qa1+ {[%clk 0:00:21.8]} 22. Nb1
{[%clk 0:00:32.3]} 22... Rac8 {[%clk 0:00:14.4]} 23. Rxg5 {[%clk 0:00:31.2]}
23... Rfd8 {[%clk 0:00:10.5]} 24. Nf3 {[%clk 0:00:29.5]} 24... a5 {[%clk
0:00:06.4]} 25. Rc5 {[%clk 0:00:28.5]} 25... axb4 {[%clk 0:00:04.8]} 26. Qxc4
{[%clk 0:00:25.6]} 26... Rxc5 {[%clk 0:00:03.5]} 27. Qxc5 {[%clk 0:00:25.9]}
27... b3 {[%clk 0:00:04]} 28. cxb3 {[%clk 0:00:19.8]} 28... Qa8 {[%clk
0:00:04.5]} 29. Kb2 {[%clk 0:00:16.2]} 29... Rc8 {[%clk 0:00:03.9]} 30. Qa3
{[%clk 0:00:14.3]} 30... Qb8 {[%clk 0:00:03.6]} 31. Rc1 {[%clk 0:00:14.3]} 31...
Rd8 {[%clk 0:00:03.1]} 32. Nc3 {[%clk 0:00:12.6]} 32... Qf4 {[%clk 0:00:02.9]}
33. Qa5 {[%clk 0:00:10.3]} 33... Qf6 {[%clk 0:00:03.3]} 34. Re1 {[%clk
0:00:04.9]} 34... g6 {[%clk 0:00:02.7]} 35. Qe5 {[%clk 0:00:03.8]} 35... Qb6
{[%clk 0:00:02.5]} 36. Qe3 {[%clk 0:00:03.3]} 36... Qc6 {[%clk 0:00:02.5]} 37.
Qe7 {[%clk 0:00:03.5]} 37... Qc8 {[%clk 0:00:02.9]} 38. Qe3 {[%clk 0:00:03.1]}
38... Rf8 {[%clk 0:00:03.8]} 39. Re2 {[%clk 0:00:03.3]} 39... Rd8 {[%clk
0:00:04.5]} 40. Rd2 {[%clk 0:00:03.5]} 40... Rf8 {[%clk 0:00:05.2]} 41. Qe4
{[%clk 0:00:03.7]} 41... Qc7 {[%clk 0:00:05]} 42. Qc4 {[%clk 0:00:03.7]} 42...
Qa5 {[%clk 0:00:05.2]} 43. Nd4 {[%clk 0:00:03.8]} 43... Qa7 {[%clk 0:00:05.4]}
44. Ndb5 {[%clk 0:00:03.5]} 44... Qb6 {[%clk 0:00:04.8]} 45. Nd5 {[%clk
0:00:04.2]} 45... Qd8 {[%clk 0:00:03.7]} 46. Qd4 {[%clk 0:00:04.2]} 46... Qg5
{[%clk 0:00:03.1]} 47. Nf6+ {[%clk 0:00:04.4]} 47... Kh8 {[%clk 0:00:03.6]} 48.
Ne4+ {[%clk 0:00:04.9]} 1-0

[Event "*** SCC Grand Prix: Titled Tuesday Blitz"]
[Site "Chess.com"]
[Date "2020.07.21"]
[Round "4"]
[White "Denmark2015"]
[Black "Alexander_Zubov"]
[Result "0-1"]
[WhiteElo "2621"]
[BlackElo "2852"]
[TimeControl "180+1"]
[EndTime "10:39:18 PDT"]
[Termination "Alexander_Zubov won by resignation"]

1. d4 {[%clk 0:03:00.9]} 1... Nf6 {[%clk 0:02:59.5]} 2. Nf3 {[%clk 0:03:00.4]}
2... g6 {[%clk 0:02:59.5]} 3. Bf4 {[%clk 0:03:00.1]} 3... Bg7 {[%clk 0:02:58.9]}
4. e3 {[%clk 0:03:00.3]} 4... d6 {[%clk 0:02:57]} 5. h3 {[%clk 0:03:00.4]} 5...
c5 {[%clk 0:02:55.1]} 6. c3 {[%clk 0:03:00.1]} 6... Qb6 {[%clk 0:02:55]} 7. Qb3
{[%clk 0:02:53.4]} 7... Be6 {[%clk 0:02:53.4]} 8. Qa3 {[%clk 0:02:39.2]} 8...
Nbd7 {[%clk 0:02:45.2]} 9. Nbd2 {[%clk 0:02:38.5]} 9... O-O {[%clk 0:02:36.2]}
10. Bc4 {[%clk 0:02:30.8]} 10... Bxc4 {[%clk 0:02:35.3]} 11. Nxc4 {[%clk
0:02:30.9]} 11... Qc6 {[%clk 0:02:33.4]} 12. Ncd2 {[%clk 0:02:23.1]} 12... b5
{[%clk 0:02:29.7]} 13. O-O {[%clk 0:02:15.4]} 13... a5 {[%clk 0:02:28.8]} 14.
Qb3 {[%clk 0:02:13.7]} 14... a4 {[%clk 0:02:27.5]} 15. Qd1 {[%clk 0:02:12.4]}
15... a3 {[%clk 0:02:27.1]} 16. b3 {[%clk 0:02:08.2]} 16... Nd5 {[%clk
0:02:26.6]} 17. Rc1 {[%clk 0:02:01.4]} 17... Nxf4 {[%clk 0:02:21.4]} 18. exf4
{[%clk 0:02:01.4]} 18... cxd4 {[%clk 0:02:12.1]} 19. Nxd4 {[%clk 0:01:51.9]}
19... Qb7 {[%clk 0:02:04.3]} 20. N2f3 {[%clk 0:01:45.1]} 20... e6 {[%clk
0:01:59.4]} 21. Qe2 {[%clk 0:01:38.7]} 21... Rab8 {[%clk 0:01:51.9]} 22. Rfd1
{[%clk 0:01:38.5]} 22... Rfc8 {[%clk 0:01:43.8]} 23. Ng5 {[%clk 0:01:25.7]}
23... Nc5 {[%clk 0:01:22.3]} 24. Qf3 {[%clk 0:00:58.1]} 24... Qxf3 {[%clk
0:01:10.7]} 25. Ngxf3 {[%clk 0:00:56.2]} 25... Bh6 {[%clk 0:01:03.9]} 26. Ne2
{[%clk 0:00:52.1]} 26... d5 {[%clk 0:00:54.6]} 27. g3 {[%clk 0:00:46.4]} 27...
Ne4 {[%clk 0:00:47.3]} 28. Nd2 {[%clk 0:00:42.4]} 28... Nd6 {[%clk 0:00:43.2]}
29. Nb1 {[%clk 0:00:42.3]} 29... Ra8 {[%clk 0:00:41.9]} 30. Nd4 {[%clk
0:00:42.1]} 30... Bg7 {[%clk 0:00:39.6]} 31. f3 {[%clk 0:00:39.3]} 31... Rc7
{[%clk 0:00:33.4]} 32. Kf2 {[%clk 0:00:37.5]} 32... h5 {[%clk 0:00:32.4]} 33.
Ke2 {[%clk 0:00:35.6]} 33... h4 {[%clk 0:00:31.9]} 34. g4 {[%clk 0:00:23.4]}
34... Bh6 {[%clk 0:00:32.1]} 35. Ke3 {[%clk 0:00:23.3]} 35... e5 {[%clk
0:00:20.9]} 36. Ne2 {[%clk 0:00:21.4]} 36... exf4+ {[%clk 0:00:19.5]} 37. Kd3
{[%clk 0:00:21.3]} 37... Re8 {[%clk 0:00:18.7]} 38. Nd4 {[%clk 0:00:19.6]} 38...
Re3+ {[%clk 0:00:18.4]} 39. Kc2 {[%clk 0:00:19.9]} 39... Bg7 {[%clk 0:00:17.9]}
40. Rd3 {[%clk 0:00:13.3]} 40... b4 {[%clk 0:00:16.7]} 41. Rxe3 {[%clk
0:00:12.9]} 41... fxe3 {[%clk 0:00:17]} 42. Kd3 {[%clk 0:00:13.8]} 42... f5
{[%clk 0:00:14.9]} 43. gxf5 {[%clk 0:00:12.8]} 43... gxf5 {[%clk 0:00:14.8]} 44.
c4 {[%clk 0:00:13.3]} 44... dxc4+ {[%clk 0:00:13.4]} 45. bxc4 {[%clk 0:00:14.2]}
45... f4 {[%clk 0:00:12.9]} 46. Ne2 {[%clk 0:00:12.1]} 46... Be5 {[%clk
0:00:11.8]} 47. Rg1+ {[%clk 0:00:10.3]} 47... Kf7 {[%clk 0:00:11.4]} 48. Rg4
{[%clk 0:00:11.2]} 48... Rxc4 {[%clk 0:00:09.4]} 49. Rxh4 {[%clk 0:00:10.5]}
49... b3 {[%clk 0:00:09.6]} 50. Nxa3 {[%clk 0:00:10]} 50... bxa2 {[%clk
0:00:09.2]} 51. Nxc4 {[%clk 0:00:08.2]} 51... Nxc4 {[%clk 0:00:09.2]} 52. Rh7+
{[%clk 0:00:07.4]} 52... Bg7 {[%clk 0:00:09.4]} 53. Rxg7+ {[%clk 0:00:06.2]}
53... Kxg7 {[%clk 0:00:09.1]} 54. Nxf4 {[%clk 0:00:06.9]} 54... a1=Q {[%clk
0:00:09.5]} 55. Ne6+ {[%clk 0:00:07.8]} 55... Kf6 {[%clk 0:00:09.2]} 0-1

[Event "*** SCC Grand Prix: Titled Tuesday Blitz"]
[Site "Chess.com"]
[Date "2020.07.21"]
[Round "4"]
[White "Paul66666"]
[Black "Iball95"]
[Result "1/2-1/2"]
[WhiteElo "2500"]
[BlackElo "2696"]
[TimeControl "180+1"]
[EndTime "10:39:19 PDT"]
[Termination "Game drawn by agreement"]

1. e4 {[%clk 0:03:00.9]} 1... c5 {[%clk 0:02:59.4]} 2. Nc3 {[%clk 0:03:00.6]}
2... Nc6 {[%clk 0:02:59.4]} 3. g3 {[%clk 0:03:01.3]} 3... e6 {[%clk 0:02:57.7]}
4. Bg2 {[%clk 0:03:01.8]} 4... Nf6 {[%clk 0:02:58.1]} 5. d3 {[%clk 0:03:02.4]}
5... d5 {[%clk 0:02:58.3]} 6. exd5 {[%clk 0:02:54.5]} 6... exd5 {[%clk
0:02:59.2]} 7. Nf3 {[%clk 0:02:53.6]} 7... d4 {[%clk 0:02:55.4]} 8. Qe2+ {[%clk
0:02:49.6]} 8... Be7 {[%clk 0:02:49.1]} 9. Ne4 {[%clk 0:02:49.4]} 9... Nxe4
{[%clk 0:02:49.6]} 10. dxe4 {[%clk 0:02:49.8]} 10... O-O {[%clk 0:02:49.3]} 11.
O-O {[%clk 0:02:49.5]} 11... Be6 {[%clk 0:02:48.8]} 12. Bf4 {[%clk 0:02:45.7]}
12... c4 {[%clk 0:02:46.6]} 13. Rfd1 {[%clk 0:02:40.2]} 13... Qb6 {[%clk
0:02:45.4]} 14. b3 {[%clk 0:02:27.3]} 14... Qc5 {[%clk 0:02:43.5]} 15. Nd2
{[%clk 0:02:09.8]} 15... c3 {[%clk 0:02:40]} 16. Nf3 {[%clk 0:02:01.9]} 16...
Rfd8 {[%clk 0:02:37.6]} 17. Ne1 {[%clk 0:02:01.6]} 17... Rac8 {[%clk 0:02:35.5]}
18. Nd3 {[%clk 0:02:01.2]} 18... Qa3 {[%clk 0:02:35.4]} 19. Bc1 {[%clk 0:01:59]}
19... Qa6 {[%clk 0:02:34.9]} 20. Bf1 {[%clk 0:01:50]} 20... h6 {[%clk
0:02:33.5]} 21. f4 {[%clk 0:01:48.6]} 21... Nb4 {[%clk 0:02:26]} 22. f5 {[%clk
0:01:45.4]} 22... Nxd3 {[%clk 0:02:26.1]} 23. fxe6 {[%clk 0:01:33.4]} 23... Nxc1
{[%clk 0:02:25.7]} 24. exf7+ {[%clk 0:01:29.9]} 24... Kxf7 {[%clk 0:02:26.6]}
25. Qxa6 {[%clk 0:00:52.9]} 25... bxa6 {[%clk 0:02:27.5]} 26. Raxc1 {[%clk
0:00:46]} 26... Bg5 {[%clk 0:02:27.2]} 27. Rb1 {[%clk 0:00:42.7]} 27... Be3+
{[%clk 0:02:26.8]} 28. Kg2 {[%clk 0:00:42.8]} 28... a5 {[%clk 0:02:27.4]} 29.
Bc4+ {[%clk 0:00:40.9]} 29... Ke7 {[%clk 0:02:27.8]} 30. Rf1 {[%clk 0:00:31.9]}
30... Rf8 {[%clk 0:02:16.4]} 31. Bd3 {[%clk 0:00:28.3]} 31... Kd6 {[%clk
0:02:15]} 32. Rxf8 {[%clk 0:00:26.3]} 32... Rxf8 {[%clk 0:02:15.9]} 33. Rf1
{[%clk 0:00:26.5]} 33... Rxf1 {[%clk 0:02:07.2]} 34. Kxf1 {[%clk 0:00:27.4]}
34... Kc5 {[%clk 0:02:06.1]} 35. a4 {[%clk 0:00:27.5]} 35... Kd6 {[%clk
0:01:56.7]} 36. Kg2 {[%clk 0:00:23.6]} 36... Ke5 {[%clk 0:01:56.6]} 37. Kf3
{[%clk 0:00:23.9]} 37... Bg1 {[%clk 0:01:57.2]} 38. h3 {[%clk 0:00:23.2]} 38...
Be3 {[%clk 0:01:57.2]} 39. Bc4 {[%clk 0:00:22.7]} 39... Bg5 {[%clk 0:01:57.3]}
40. Bd3 {[%clk 0:00:22.3]} 40... Be7 {[%clk 0:01:58]} 41. Kg4 {[%clk 0:00:21.5]}
41... g6 {[%clk 0:01:57.4]} 42. Kf3 {[%clk 0:00:20.9]} 42... Bd8 {[%clk
0:01:56.7]} 43. Ba6 {[%clk 0:00:20.1]} 43... Bc7 {[%clk 0:01:56.8]} 44. Bb5
{[%clk 0:00:19.9]} 44... Kf6 {[%clk 0:01:56.9]} 45. Bd3 {[%clk 0:00:18]} 45...
Be5 {[%clk 0:01:57]} 46. Bc4 {[%clk 0:00:18.1]} 46... Ke7 {[%clk 0:01:57.1]} 47.
Bd3 {[%clk 0:00:18.7]} 47... Kd6 {[%clk 0:01:57.5]} 48. Bc4 {[%clk 0:00:19.1]}
48... Kc5 {[%clk 0:01:58.1]} 49. Bd3 {[%clk 0:00:19.6]} 49... Kb4 {[%clk
0:01:58.4]} 50. Kf2 {[%clk 0:00:19.2]} 50... Ka3 {[%clk 0:01:58.6]} 51. Kf3
{[%clk 0:00:19.6]} 51... Kb2 {[%clk 0:01:58.8]} 52. h4 {[%clk 0:00:20.2]} 52...
Kc1 {[%clk 0:01:58.7]} 53. g4 {[%clk 0:00:20.5]} 53... h5 {[%clk 0:01:53.7]} 54.
gxh5 {[%clk 0:00:18.7]} 54... gxh5 {[%clk 0:01:54.6]} 55. Kg2 {[%clk 0:00:17.3]}
55... Kd2 {[%clk 0:01:54.4]} 56. Kh3 {[%clk 0:00:18.2]} 56... Ke3 {[%clk
0:01:54.3]} 57. Kg2 {[%clk 0:00:17.9]} 57... Kf4 {[%clk 0:01:53.3]} 58. Kh3
{[%clk 0:00:18.3]} 58... Kf3 {[%clk 0:01:53.3]} 59. Bc4 {[%clk 0:00:16.7]} 59...
Kxe4 {[%clk 0:01:53.3]} 60. Bd3+ {[%clk 0:00:17.6]} 60... Kf4 {[%clk 0:01:53.3]}
61. Bh7 {[%clk 0:00:18.2]} 61... Bf6 {[%clk 0:01:52.9]} 62. Bd3 {[%clk
0:00:19.1]} 62... Kf3 {[%clk 0:01:53]} 63. Bg6 {[%clk 0:00:18.7]} 63... Ke3
{[%clk 0:01:52.2]} 64. Bd3 {[%clk 0:00:18.6]} 64... Kd2 {[%clk 0:01:52.3]} 65.
Bg6 {[%clk 0:00:19.1]} 65... Ke1 {[%clk 0:01:52.7]} 66. Bd3 {[%clk 0:00:19.6]}
66... Kf2 {[%clk 0:01:53.6]} 67. Bg6 {[%clk 0:00:20.1]} 67... Ke3 {[%clk
0:01:54.5]} 68. Bd3 {[%clk 0:00:20.5]} 68... Kf4 {[%clk 0:01:55.4]} 69. Bg6
{[%clk 0:00:20.9]} 69... Bd8 {[%clk 0:01:56]} 70. Bd3 {[%clk 0:00:21.2]} 70...
Ke5 {[%clk 0:01:56.4]} 71. Bg6 {[%clk 0:00:21.6]} 71... Kf6 {[%clk 0:01:57]} 72.
Bd3 {[%clk 0:00:21.3]} 72... Be7 {[%clk 0:01:57.1]} 73. Be2 {[%clk 0:00:21.4]}
73... Bd6 {[%clk 0:01:56.9]} 74. Bd3 {[%clk 0:00:21.8]} 74... Ke5 {[%clk
0:01:56.7]} 75. Bg6 {[%clk 0:00:21.5]} 75... Kf4 {[%clk 0:01:57.1]} 76. Bd3
{[%clk 0:00:22]} 76... Kf3 {[%clk 0:01:57.4]} 77. Bg6 {[%clk 0:00:22.5]} 77...
Kf4 {[%clk 0:01:57.6]} 78. Bd3 {[%clk 0:00:23]} 78... Ke5 {[%clk 0:01:58.2]} 79.
Bh7 {[%clk 0:00:23.5]} 79... Kf6 {[%clk 0:01:58.3]} 80. Bd3 {[%clk 0:00:24]}
80... Bc7 {[%clk 0:01:59.2]} 81. Be4 {[%clk 0:00:23.9]} 81... Kg7 {[%clk
0:01:59.8]} 82. Bd3 {[%clk 0:00:24.3]} 82... Kf6 {[%clk 0:02:00.2]} 83. Be4
{[%clk 0:00:24.4]} 83... a6 {[%clk 0:02:00.6]} 84. Bd3 {[%clk 0:00:24.9]} 84...
Ke5 {[%clk 0:02:01.1]} 85. Bg6 {[%clk 0:00:25]} 85... Kf4 {[%clk 0:02:01.4]} 86.
Bd3 {[%clk 0:00:25.3]} 86... Ke3 {[%clk 0:02:01.7]} 87. Bxa6 {[%clk 0:00:24]}
87... Bd6 {[%clk 0:01:59.3]} 88. Bd3 {[%clk 0:00:24.4]} 88... Kd2 {[%clk
0:01:59.3]} 89. Bg6 {[%clk 0:00:24.7]} 89... Be7 {[%clk 0:01:59.2]} 90. Bd3
{[%clk 0:00:25.2]} 90... Ke1 {[%clk 0:01:59.4]} 91. Bg6 {[%clk 0:00:25.8]} 91...
Kf2 {[%clk 0:01:59.9]} 92. Bd3 {[%clk 0:00:26.3]} 92... Ke3 {[%clk 0:02:00.4]}
93. Bg6 {[%clk 0:00:26.9]} 93... Kf4 {[%clk 0:02:00.9]} 94. Bd3 {[%clk
0:00:27.2]} 94... Ke5 {[%clk 0:02:01.3]} 95. Bh7 {[%clk 0:00:27.7]} 95... Kf6
{[%clk 0:01:57]} 96. Bd3 {[%clk 0:00:28.2]} 96... Bd6 {[%clk 0:01:53.4]} 97. Be2
{[%clk 0:00:25.4]} 97... Ke5 {[%clk 0:01:53.3]} 98. Bd3 {[%clk 0:00:25.3]}
1/2-1/2

[Event "*** SCC Grand Prix: Titled Tuesday Blitz"]
[Site "Chess.com"]
[Date "2020.07.21"]
[Round "4"]
[White "bratkoo"]
[Black "BakaPG"]
[Result "0-1"]
[WhiteElo "2470"]
[BlackElo "2650"]
[TimeControl "180+1"]
[EndTime "10:39:19 PDT"]
[Termination "BakaPG won by checkmate"]

1. e4 {[%clk 0:03:00.9]} 1... e6 {[%clk 0:02:58.8]} 2. d4 {[%clk 0:03:00.2]}
2... d5 {[%clk 0:02:59.4]} 3. Nd2 {[%clk 0:02:59.7]} 3... a6 {[%clk 0:02:58.1]}
4. Ngf3 {[%clk 0:02:59.4]} 4... Nf6 {[%clk 0:02:56.8]} 5. Bd3 {[%clk 0:02:57]}
5... c5 {[%clk 0:02:55.9]} 6. c3 {[%clk 0:02:57.1]} 6... Nc6 {[%clk 0:02:55.1]}
7. exd5 {[%clk 0:02:57.3]} 7... exd5 {[%clk 0:02:54.4]} 8. O-O {[%clk
0:02:57.3]} 8... c4 {[%clk 0:02:54.7]} 9. Bc2 {[%clk 0:02:56.5]} 9... Be7 {[%clk
0:02:52.9]} 10. b3 {[%clk 0:02:56.7]} 10... cxb3 {[%clk 0:02:51.7]} 11. axb3
{[%clk 0:02:56.2]} 11... O-O {[%clk 0:02:50]} 12. h3 {[%clk 0:02:56.8]} 12... h6
{[%clk 0:02:46.5]} 13. Re1 {[%clk 0:02:56.1]} 13... Be6 {[%clk 0:02:46.5]} 14.
Nf1 {[%clk 0:02:56.2]} 14... Rc8 {[%clk 0:02:43.3]} 15. Ng3 {[%clk 0:02:56.1]}
15... Qd7 {[%clk 0:02:42.2]} 16. Qd3 {[%clk 0:02:54.9]} 16... Rfe8 {[%clk
0:02:19.8]} 17. Ne5 {[%clk 0:02:28.4]} 17... Qd8 {[%clk 0:01:45.2]} 18. Nh5
{[%clk 0:02:13.3]} 18... Ne4 {[%clk 0:01:42.8]} 19. Rxe4 {[%clk 0:01:42.6]}
19... dxe4 {[%clk 0:01:41.8]} 20. Qg3 {[%clk 0:01:43.3]} 20... Bg5 {[%clk
0:01:24.8]} 21. h4 {[%clk 0:01:26.3]} 21... Nxd4 {[%clk 0:01:24.4]} 22. cxd4
{[%clk 0:01:19.3]} 22... Rxc2 {[%clk 0:01:09.6]} 23. hxg5 {[%clk 0:01:13.8]}
23... Qxd4 {[%clk 0:01:09.4]} 24. gxh6 {[%clk 0:01:03]} 24... Qd1+ {[%clk
0:01:08.5]} 25. Kh2 {[%clk 0:01:00.7]} 25... Qxh5+ {[%clk 0:01:07.6]} 26. Kg1
{[%clk 0:01:00]} 26... g6 {[%clk 0:00:49]} 27. Be3 {[%clk 0:00:59.4]} 27... Rd8
{[%clk 0:00:46.5]} 28. Qf4 {[%clk 0:00:35.2]} 28... Rd1+ {[%clk 0:00:42.7]} 29.
Rxd1 {[%clk 0:00:35.2]} 29... Qxd1+ {[%clk 0:00:42.5]} 30. Kh2 {[%clk
0:00:35.9]} 30... Qh5+ {[%clk 0:00:42.1]} 31. Kg3 {[%clk 0:00:28.4]} 31... g5
{[%clk 0:00:35.6]} 32. Qxe4 {[%clk 0:00:17.8]} 32... Qh4+ {[%clk 0:00:21.1]} 33.
Qxh4 {[%clk 0:00:17.2]} 33... gxh4+ {[%clk 0:00:21.8]} 34. Kxh4 {[%clk 0:00:18]}
34... Kh7 {[%clk 0:00:19.4]} 35. b4 {[%clk 0:00:17.8]} 35... Rb2 {[%clk
0:00:17.3]} 36. Bc5 {[%clk 0:00:17.3]} 36... b6 {[%clk 0:00:16.3]} 37. Be7
{[%clk 0:00:17.2]} 37... Rxf2 {[%clk 0:00:15]} 38. g4 {[%clk 0:00:16.2]} 38...
a5 {[%clk 0:00:14.3]} 39. bxa5 {[%clk 0:00:15.8]} 39... bxa5 {[%clk 0:00:14.6]}
40. g5 {[%clk 0:00:16.3]} 40... a4 {[%clk 0:00:13.8]} 41. Kg3 {[%clk 0:00:16.6]}
41... Rb2 {[%clk 0:00:10.6]} 42. Ng4 {[%clk 0:00:14.9]} 42... Bxg4 {[%clk
0:00:09.5]} 43. Kxg4 {[%clk 0:00:15.2]} 43... Rb3 {[%clk 0:00:09.7]} 44. Kf5
{[%clk 0:00:15.6]} 44... a3 {[%clk 0:00:09.7]} 45. Kf6 {[%clk 0:00:16.1]} 45...
Rf3+ {[%clk 0:00:09.5]} 46. Ke5 {[%clk 0:00:16.4]} 46... a2 {[%clk 0:00:09.9]}
47. Ke4 {[%clk 0:00:16.1]} 47... Rf1 {[%clk 0:00:08.4]} 48. Bf6 {[%clk
0:00:16.4]} 48... Rxf6 {[%clk 0:00:06.9]} 49. gxf6 {[%clk 0:00:17.3]} 49... a1=Q
{[%clk 0:00:06.9]} 50. Kf5 {[%clk 0:00:18.2]} 50... Qd4 {[%clk 0:00:06.4]} 51.
Kg5 {[%clk 0:00:19.1]} 51... Qe5+ {[%clk 0:00:06.6]} 52. Kg4 {[%clk 0:00:19.9]}
52... Qxf6 {[%clk 0:00:07.3]} 53. Kh5 {[%clk 0:00:20.7]} 53... Qxh6+ {[%clk
0:00:07.6]} 54. Kg4 {[%clk 0:00:20.2]} 54... Qf6 {[%clk 0:00:08]} 55. Kh5 {[%clk
0:00:20.5]} 55... Qg6+ {[%clk 0:00:07.7]} 56. Kh4 {[%clk 0:00:20.5]} 56... Kh6
{[%clk 0:00:07]} 57. Kh3 {[%clk 0:00:20.8]} 57... Kh5 {[%clk 0:00:07.3]} 58. Kh2
{[%clk 0:00:21.3]} 58... Qd3 {[%clk 0:00:07.2]} 59. Kg2 {[%clk 0:00:21.3]} 59...
Kg4 {[%clk 0:00:07.9]} 60. Kf2 {[%clk 0:00:21.9]} 60... Qd2+ {[%clk 0:00:07.5]}
61. Kg1 {[%clk 0:00:22.2]} 61... Kg3 {[%clk 0:00:08.3]} 62. Kh1 {[%clk
0:00:22.5]} 62... Qd1# {[%clk 0:00:09.2]} 0-1